[Event "Titled Tuesday Blitz October 12 2021"]
[White "Djordjevic, Vuk"]
[Black "Moroni, Luca Jr"]
[WhiteFideId "902098"]
[BlackFideId "865834"]
[WhiteElo "2463"]
[BlackElo "2491"]
[Result "1-0"]
[Round "04"]
[TimeControl "180+1"]
[Date "2021.10.12"]
[WhiteClock "0:00:18"]
[BlackClock "0:00:04"]

1. d4 {[%clk 0:03:00]}  g6 {[%clk 0:03:00]} 2. e4 {[%clk 0:03:00]}  Bg7 {[%clk 0:03:00]} 3. Nf3 {[%clk 0:03:00]}  d6 {[%clk 0:03:01]} 4. Nc3 {[%clk 0:03:00]}  Nf6 {[%clk 0:03:01]} 5. Be2 {[%clk 0:03:00]}  O-O {[%clk 0:03:01]} 6. O-O {[%clk 0:03:00]}  a6 {[%clk 0:03:02]} 7. a4 {[%clk 0:03:00]}  Nc6 {[%clk 0:03:02]} 8. d5 {[%clk 0:02:58]}  Nb4 {[%clk 0:03:02]} 9. a5 {[%clk 0:02:55]}  e6 {[%clk 0:03:02]} 10. Bc4 {[%clk 0:02:33]}  exd5 {[%clk 0:03:01]} 11. exd5 {[%clk 0:02:33]}  b5 {[%clk 0:02:28]} 12. Bb3 {[%clk 0:02:20]}  Bb7 {[%clk 0:02:23]} 13. Bg5 {[%clk 0:02:08]}  h6 {[%clk 0:02:22]} 14. Be3 {[%clk 0:02:07]}  Re8 {[%clk 0:02:16]} 15. Qd2 {[%clk 0:02:07]}  Kh7 {[%clk 0:02:16]} 16. Rfe1 {[%clk 0:02:02]}  Qd7 {[%clk 0:02:14]} 17. Rad1 {[%clk 0:01:49]}  Re7 {[%clk 0:01:47]} 18. Bd4 {[%clk 0:01:18]}  Rae8 {[%clk 0:01:46]} 19. Rxe7 {[%clk 0:01:18]}  Rxe7 {[%clk 0:01:47]} 20. Bxf6 {[%clk 0:01:19]}  Bxf6 {[%clk 0:01:46]} 21. Qf4 {[%clk 0:01:19]}  Bxc3 {[%clk 0:01:18]} 22. bxc3 {[%clk 0:01:20]}  Nxd5 {[%clk 0:01:16]} 23. Bxd5 {[%clk 0:01:20]}  Bxd5 {[%clk 0:01:16]} 24. Rxd5 {[%clk 0:01:20]}  Qc6 {[%clk 0:01:16]} 25. Qf6 {[%clk 0:00:54]}  Qxd5 {[%clk 0:01:07]} 26. Qxe7 {[%clk 0:00:53]}  c5 {[%clk 0:00:57]} 27. h4 {[%clk 0:00:50]}  Kg7 {[%clk 0:00:52]} 28. Kh2 {[%clk 0:00:41]}  b4 {[%clk 0:00:43]} 29. cxb4 {[%clk 0:00:40]}  cxb4 {[%clk 0:00:44]} 30. Qe3 {[%clk 0:00:40]}  Qxa5 {[%clk 0:00:42]} 31. Qd4+ {[%clk 0:00:40]}  Kh7 {[%clk 0:00:41]} 32. Qxd6 {[%clk 0:00:38]}  Qf5 {[%clk 0:00:37]} 33. Qxb4 {[%clk 0:00:33]}  Qxc2 {[%clk 0:00:37]} 34. Qf4 {[%clk 0:00:30]}  Kg7 {[%clk 0:00:32]} 35. Qe5+ {[%clk 0:00:30]}  Kh7 {[%clk 0:00:27]} 36. Qf6 {[%clk 0:00:30]}  Qc7+ {[%clk 0:00:22]} 37. Ne5 {[%clk 0:00:30]}  Kg8 {[%clk 0:00:21]} 38. f4 {[%clk 0:00:27]}  a5 {[%clk 0:00:18]} 39. Nc6 {[%clk 0:00:23]}  g5 {[%clk 0:00:09]} 40. hxg5 {[%clk 0:00:20]}  hxg5 {[%clk 0:00:10]} 41. Qxg5+ {[%clk 0:00:20]}  Kf8 {[%clk 0:00:11]} 42. Nxa5 {[%clk 0:00:20]}  Qd6 {[%clk 0:00:08]} 43. Nc4 {[%clk 0:00:19]}  Qd4 {[%clk 0:00:07]} 44. Ne5 {[%clk 0:00:19]}  Qd6 {[%clk 0:00:06]} 45. Ng4 {[%clk 0:00:18]}  Qe6 {[%clk 0:00:03]} 46. Qh6+ {[%clk 0:00:18]}  Ke7 {[%clk 0:00:03]} 47. Qxe6+ {[%clk 0:00:17]}  Kxe6 {[%clk 0:00:04]} 48. Ne3 {[%clk 0:00:18]} 1-0


[Site "https://www.chess.com"]

[Event "Titled Tuesday Blitz October 12 2021"]
[White "Guliev, Logman"]
[Black "Gasanov, Eldar"]
[WhiteFideId "13400061"]
[BlackFideId "14104466"]
[WhiteElo "2128"]
[BlackElo "2454"]
[Result "0-1"]
[Round "04"]
[TimeControl "180+1"]
[Date "2021.10.12"]
[WhiteClock "0:00:08"]
[BlackClock "0:00:56"]

1. e4 {[%clk 0:03:00]}  c5 {[%clk 0:02:58]} 2. Nf3 {[%clk 0:03:00]}  Nc6 {[%clk 0:02:58]} 3. Bb5 {[%clk 0:02:59]}  Nf6 {[%clk 0:02:57]} 4. e5 {[%clk 0:02:56]}  Nd5 {[%clk 0:02:57]} 5. Nc3 {[%clk 0:02:53]}  Nc7 {[%clk 0:02:56]} 6. Bxc6 {[%clk 0:02:52]}  dxc6 {[%clk 0:02:56]} 7. O-O {[%clk 0:02:51]}  Bg4 {[%clk 0:02:55]} 8. h3 {[%clk 0:02:50]}  Bh5 {[%clk 0:02:54]} 9. Ne4 {[%clk 0:02:47]}  e6 {[%clk 0:02:52]} 10. Ng3 {[%clk 0:02:43]}  Bg6 {[%clk 0:02:50]} 11. d3 {[%clk 0:02:43]}  c4 {[%clk 0:02:43]} 12. d4 {[%clk 0:02:36]}  Be7 {[%clk 0:02:37]} 13. c3 {[%clk 0:02:33]}  Nd5 {[%clk 0:02:32]} 14. Re1 {[%clk 0:02:27]}  O-O {[%clk 0:02:27]} 15. Ne4 {[%clk 0:02:26]}  h6 {[%clk 0:02:18]} 16. Bd2 {[%clk 0:02:22]}  b5 {[%clk 0:02:10]} 17. b3 {[%clk 0:02:15]}  Nb6 {[%clk 0:02:07]} 18. Qc1 {[%clk 0:01:46]}  Kh7 {[%clk 0:02:06]} 19. Nh2 {[%clk 0:01:36]}  Qd5 {[%clk 0:01:58]} 20. Ng3 {[%clk 0:01:11]}  cxb3 {[%clk 0:01:51]} 21. axb3 {[%clk 0:01:11]}  Qxb3 {[%clk 0:01:48]} 22. Ng4 {[%clk 0:01:11]}  Qc2 {[%clk 0:01:45]} 23. Bxh6 {[%clk 0:01:04]}  Qxc1 {[%clk 0:01:45]} 24. Bxc1 {[%clk 0:01:04]}  a5 {[%clk 0:01:40]} 25. Ne3 {[%clk 0:00:51]}  c5 {[%clk 0:01:32]} 26. f4 {[%clk 0:00:41]}  Bh4 {[%clk 0:01:31]} 27. Kh2 {[%clk 0:00:39]}  cxd4 {[%clk 0:01:29]} 28. cxd4 {[%clk 0:00:39]}  Rfd8 {[%clk 0:01:26]} 29. Rd1 {[%clk 0:00:39]}  b4 {[%clk 0:01:22]} 30. f5 {[%clk 0:00:28]}  Bxg3+ {[%clk 0:01:17]} 31. Kxg3 {[%clk 0:00:28]}  Bxf5 {[%clk 0:01:17]} 32. Nxf5 {[%clk 0:00:26]}  exf5 {[%clk 0:01:18]} 33. d5 {[%clk 0:00:27]}  Rxd5 {[%clk 0:01:15]} 34. Be3 {[%clk 0:00:19]}  Rxd1 {[%clk 0:01:11]} 35. Rxd1 {[%clk 0:00:19]}  Nc4 {[%clk 0:01:11]} 36. Bf4 {[%clk 0:00:17]}  a4 {[%clk 0:01:11]} 37. Rd4 {[%clk 0:00:17]}  a3 {[%clk 0:01:06]} 38. e6 {[%clk 0:00:10]}  a2 {[%clk 0:00:59]} 39. Be5 {[%clk 0:00:08]}  Nxe5 {[%clk 0:00:56]} 0-1


[Site "https://www.chess.com"]

[Event "Titled Tuesday Blitz October 12 2021"]
[White "Hansen, Eric"]
[Black "Maksimovic, Bojan"]
[WhiteFideId "2606771"]
[BlackFideId "14408120"]
[WhiteElo "2568"]
[BlackElo "2439"]
[Result "1-0"]
[Round "04"]
[TimeControl "180+1"]
[Date "2021.10.12"]
[WhiteClock "0:00:03"]
[BlackClock "0:00:03"]

1. Nf3 {[%clk 0:03:00]}  Nf6 {[%clk 0:02:58]} 2. g3 {[%clk 0:02:58]}  g6 {[%clk 0:02:58]} 3. Bg2 {[%clk 0:02:59]}  Bg7 {[%clk 0:02:59]} 4. O-O {[%clk 0:02:56]}  d5 {[%clk 0:02:59]} 5. c4 {[%clk 0:02:54]}  c5 {[%clk 0:02:53]} 6. cxd5 {[%clk 0:02:52]}  Nxd5 {[%clk 0:02:52]} 7. Nc3 {[%clk 0:02:53]}  O-O {[%clk 0:02:48]} 8. Qb3 {[%clk 0:02:35]}  Nb6 {[%clk 0:02:34]} 9. d3 {[%clk 0:02:24]}  Be6 {[%clk 0:02:25]} 10. Qb5 {[%clk 0:02:24]}  Na6 {[%clk 0:02:16]} 11. Ng5 {[%clk 0:02:08]}  Bd7 {[%clk 0:02:15]} 12. Qa5 {[%clk 0:02:07]}  Qc8 {[%clk 0:01:23]} 13. Be3 {[%clk 0:02:01]}  h6 {[%clk 0:01:15]} 14. Nge4 {[%clk 0:02:00]}  c4 {[%clk 0:01:09]} 15. d4 {[%clk 0:01:53]}  Bh3 {[%clk 0:01:06]} 16. Bxh3 {[%clk 0:01:39]}  Qxh3 {[%clk 0:01:07]} 17. Rad1 {[%clk 0:01:37]}  Qf5 {[%clk 0:00:35]} 18. Nc5 {[%clk 0:01:32]}  Nxc5 {[%clk 0:00:32]} 19. dxc5 {[%clk 0:01:31]}  Bxc3 {[%clk 0:00:15]} 20. Qxc3 {[%clk 0:01:31]}  Nd5 {[%clk 0:00:15]} 21. Rxd5 {[%clk 0:01:28]}  Qxd5 {[%clk 0:00:15]} 22. Bxh6 {[%clk 0:01:29]}  e5 {[%clk 0:00:12]} 23. Bxf8 {[%clk 0:01:28]}  Rxf8 {[%clk 0:00:12]} 24. Rc1 {[%clk 0:01:25]}  Qxc5 {[%clk 0:00:09]} 25. Qxc4 {[%clk 0:01:26]}  Qb6 {[%clk 0:00:09]} 26. b4 {[%clk 0:01:23]}  Rd8 {[%clk 0:00:09]} 27. a3 {[%clk 0:01:23]}  Rd2 {[%clk 0:00:09]} 28. Qe4 {[%clk 0:01:21]}  Qd4 {[%clk 0:00:04]} 29. Qf3 {[%clk 0:01:05]}  e4 {[%clk 0:00:04]} 30. Qg4 {[%clk 0:00:48]}  Kg7 {[%clk 0:00:04]} 31. e3 {[%clk 0:00:34]}  Qd5 {[%clk 0:00:04]} 32. h4 {[%clk 0:00:29]}  Ra2 {[%clk 0:00:02]} 33. Rd1 {[%clk 0:00:26]}  Qf5 {[%clk 0:00:02]} 34. Qxf5 {[%clk 0:00:24]}  gxf5 {[%clk 0:00:02]} 35. Rd7 {[%clk 0:00:20]}  Rxa3 {[%clk 0:00:03]} 36. Rxb7 {[%clk 0:00:20]}  Kg6 {[%clk 0:00:04]} 37. Kg2 {[%clk 0:00:18]}  Ra2 {[%clk 0:00:04]} 38. Rb5 {[%clk 0:00:16]}  Rb2 {[%clk 0:00:04]} 39. h5+ {[%clk 0:00:11]}  Kxh5 {[%clk 0:00:03]} 40. Rxf5+ {[%clk 0:00:11]}  Kg6 {[%clk 0:00:03]} 41. Rb5 {[%clk 0:00:11]}  f5 {[%clk 0:00:03]} 42. g4 {[%clk 0:00:08]}  fxg4 {[%clk 0:00:03]} 43. Kg3 {[%clk 0:00:09]}  Kf6 {[%clk 0:00:03]} 44. Rb7 {[%clk 0:00:09]}  Kf5 {[%clk 0:00:03]} 45. b5 {[%clk 0:00:08]}  Ke5 {[%clk 0:00:02]} 46. Rg7 {[%clk 0:00:05]}  Kf5 {[%clk 0:00:02]} 47. Rf7+ {[%clk 0:00:03]}  Ke5 {[%clk 0:00:02]} 48. Rxa7 {[%clk 0:00:02]}  Rxb5 {[%clk 0:00:02]} 49. Kxg4 {[%clk 0:00:03]}  Rb1 {[%clk 0:00:01]} 50. Ra5+ {[%clk 0:00:01]}  Ke6 {[%clk 0:00:02]} 51. Kf4 {[%clk 0:00:02]}  Rf1 {[%clk 0:00:02]} 52. Ra2 {[%clk 0:00:02]}  Kd5 {[%clk 0:00:03]} 53. Rd2+ {[%clk 0:00:02]}  Ke6 {[%clk 0:00:03]} 54. Kxe4 {[%clk 0:00:03]} 1-0


[Site "https://www.chess.com"]

[Event "Titled Tuesday Blitz October 12 2021"]
[White "Holt, Conrad"]
[Black "Khademalsharieh, Sarasadat"]
[WhiteFideId "2034387"]
[BlackFideId "12512214"]
[WhiteElo "2586"]
[BlackElo "2431"]
[Result "1-0"]
[Round "04"]
[TimeControl "180+1"]
[Date "2021.10.12"]
[WhiteClock "0:00:02"]
[BlackClock "0:00:08"]

1. d4 {[%clk 0:03:00]}  Nf6 {[%clk 0:02:59]} 2. c4 {[%clk 0:03:01]}  e6 {[%clk 0:02:59]} 3. Nc3 {[%clk 0:03:01]}  Bb4 {[%clk 0:02:59]} 4. Qc2 {[%clk 0:03:02]}  d5 {[%clk 0:02:59]} 5. cxd5 {[%clk 0:03:02]}  exd5 {[%clk 0:02:59]} 6. Bg5 {[%clk 0:03:01]}  O-O {[%clk 0:02:59]} 7. a3 {[%clk 0:02:56]}  Be7 {[%clk 0:02:52]} 8. e3 {[%clk 0:02:55]}  c6 {[%clk 0:02:51]} 9. Bd3 {[%clk 0:02:55]}  Nbd7 {[%clk 0:02:49]} 10. Nge2 {[%clk 0:02:52]}  Re8 {[%clk 0:02:49]} 11. O-O {[%clk 0:02:51]}  Nf8 {[%clk 0:02:49]} 12. Rad1 {[%clk 0:02:46]}  a5 {[%clk 0:02:48]} 13. f3 {[%clk 0:02:34]}  h6 {[%clk 0:02:47]} 14. Bh4 {[%clk 0:02:32]}  b6 {[%clk 0:02:43]} 15. e4 {[%clk 0:02:27]}  dxe4 {[%clk 0:02:41]} 16. fxe4 {[%clk 0:02:27]}  Ng4 {[%clk 0:02:41]} 17. Bxe7 {[%clk 0:02:26]}  Qxe7 {[%clk 0:02:41]} 18. Rf3 {[%clk 0:02:24]}  Qg5 {[%clk 0:01:52]} 19. Qc1 {[%clk 0:01:58]}  Ne6 {[%clk 0:01:38]} 20. e5 {[%clk 0:01:52]}  Qxc1 {[%clk 0:01:29]} 21. Rxc1 {[%clk 0:01:53]}  c5 {[%clk 0:01:26]} 22. h3 {[%clk 0:00:30]}  cxd4 {[%clk 0:01:24]} 23. hxg4 {[%clk 0:00:28]}  dxc3 {[%clk 0:01:24]} 24. Nxc3 {[%clk 0:00:22]}  Nd4 {[%clk 0:01:20]} 25. Rf4 {[%clk 0:00:17]}  Rd8 {[%clk 0:01:15]} 26. Rd1 {[%clk 0:00:13]}  Be6 {[%clk 0:01:11]} 27. Rxd4 {[%clk 0:00:06]}  Rxd4 {[%clk 0:01:10]} 28. Bh7+ {[%clk 0:00:07]}  Kxh7 {[%clk 0:01:10]} 29. Rxd4 {[%clk 0:00:08]}  Rc8 {[%clk 0:01:10]} 30. Kf2 {[%clk 0:00:07]}  Rc5 {[%clk 0:01:09]} 31. Re4 {[%clk 0:00:07]}  Kg6 {[%clk 0:00:52]} 32. Ke3 {[%clk 0:00:06]}  Kg5 {[%clk 0:00:50]} 33. Kf3 {[%clk 0:00:04]}  Rxc3+ {[%clk 0:00:47]} 34. bxc3 {[%clk 0:00:05]}  Bd5 {[%clk 0:00:47]} 35. c4 {[%clk 0:00:05]}  Bxe4+ {[%clk 0:00:46]} 36. Kxe4 {[%clk 0:00:05]}  Kxg4 {[%clk 0:00:47]} 37. Kd5 {[%clk 0:00:06]}  h5 {[%clk 0:00:25]} 38. Kc6 {[%clk 0:00:05]}  Kg3 {[%clk 0:00:18]} 39. Kxb6 {[%clk 0:00:05]}  Kxg2 {[%clk 0:00:19]} 40. c5 {[%clk 0:00:06]}  h4 {[%clk 0:00:19]} 41. c6 {[%clk 0:00:06]}  h3 {[%clk 0:00:19]} 42. c7 {[%clk 0:00:07]}  h2 {[%clk 0:00:19]} 43. c8=Q {[%clk 0:00:07]}  h1=Q {[%clk 0:00:19]} 44. Qg4+ {[%clk 0:00:06]}  Kf2 {[%clk 0:00:18]} 45. Qxg7 {[%clk 0:00:06]}  Qd5 {[%clk 0:00:16]} 46. Qf6+ {[%clk 0:00:05]}  Ke3 {[%clk 0:00:16]} 47. Qd6 {[%clk 0:00:04]}  Qb3+ {[%clk 0:00:16]} 48. Kxa5 {[%clk 0:00:04]}  Qc3+ {[%clk 0:00:12]} 49. Kb5 {[%clk 0:00:04]}  Qb3+ {[%clk 0:00:12]} 50. Kc6 {[%clk 0:00:03]}  Qa4+ {[%clk 0:00:11]} 51. Kc7 {[%clk 0:00:03]}  Qa7+ {[%clk 0:00:09]} 52. Kd8 {[%clk 0:00:02]}  Qa8+ {[%clk 0:00:10]} 53. Ke7 {[%clk 0:00:02]}  Qa7+ {[%clk 0:00:09]} 54. Kf6 {[%clk 0:00:02]}  Ke4 {[%clk 0:00:08]} 55. Qc6+ {[%clk 0:00:02]}  Kd4 {[%clk 0:00:08]} 56. Qd6+ {[%clk 0:00:01]}  Ke4 {[%clk 0:00:08]} 57. Qe7 {[%clk 0:00:01]}  Qa4 {[%clk 0:00:08]} 58. Kxf7 {[%clk 0:00:01]}  Qb3+ {[%clk 0:00:08]} 59. e6 {[%clk 0:00:01]}  Qd1 {[%clk 0:00:07]} 60. Qf6 {[%clk 0:00:01]}  Qh5+ {[%clk 0:00:07]} 61. Qg6+ {[%clk 0:00:01]}  Qf5+ {[%clk 0:00:07]} 62. Qxf5+ {[%clk 0:00:01]}  Kxf5 {[%clk 0:00:08]} 63. e7 {[%clk 0:00:02]} 1-0


[Site "https://www.chess.com"]

[Event "Titled Tuesday Blitz October 12 2021"]
[White "Indjic, Aleksandar"]
[Black "Ghimpu, Samuel-Timotei"]
[WhiteFideId "911925"]
[BlackFideId "1238175"]
[WhiteElo "2643"]
[BlackElo "2012"]
[Result "1-0"]
[Round "04"]
[TimeControl "180+1"]
[Date "2021.10.12"]
[WhiteClock "0:00:20"]
[BlackClock "0:00:09"]

1. e4 {[%clk 0:03:00]}  e6 {[%clk 0:02:58]} 2. d4 {[%clk 0:02:59]}  d5 {[%clk 0:02:59]} 3. Nc3 {[%clk 0:02:59]}  Nf6 {[%clk 0:02:59]} 4. e5 {[%clk 0:02:58]}  Nfd7 {[%clk 0:02:59]} 5. Nce2 {[%clk 0:02:57]}  c5 {[%clk 0:03:00]} 6. c3 {[%clk 0:02:57]}  Nc6 {[%clk 0:03:00]} 7. Nf3 {[%clk 0:02:55]}  Be7 {[%clk 0:03:01]} 8. Nf4 {[%clk 0:02:51]}  Qb6 {[%clk 0:02:53]} 9. a3 {[%clk 0:02:49]}  cxd4 {[%clk 0:02:52]} 10. cxd4 {[%clk 0:02:48]}  g5 {[%clk 0:02:53]} 11. Ne2 {[%clk 0:02:36]}  g4 {[%clk 0:02:50]} 12. Nfg1 {[%clk 0:02:35]}  Ndxe5 {[%clk 0:02:41]} 13. dxe5 {[%clk 0:02:29]}  Bc5 {[%clk 0:02:42]} 14. Be3 {[%clk 0:01:59]}  Bxe3 {[%clk 0:02:40]} 15. fxe3 {[%clk 0:02:00]}  Qxe3 {[%clk 0:02:28]} 16. Qd2 {[%clk 0:01:59]}  Qxe5 {[%clk 0:02:28]} 17. O-O-O {[%clk 0:01:58]}  Bd7 {[%clk 0:02:21]} 18. Kb1 {[%clk 0:01:43]}  O-O-O {[%clk 0:02:18]} 19. Nf4 {[%clk 0:01:43]}  Kb8 {[%clk 0:02:03]} 20. Bb5 {[%clk 0:01:37]}  Qd6 {[%clk 0:01:58]} 21. Nge2 {[%clk 0:01:35]}  a6 {[%clk 0:01:39]} 22. Ba4 {[%clk 0:01:32]}  f6 {[%clk 0:01:12]} 23. Rhe1 {[%clk 0:01:21]}  Ne7 {[%clk 0:01:09]} 24. Bb3 {[%clk 0:01:19]}  Bc6 {[%clk 0:00:59]} 25. Nd4 {[%clk 0:01:16]}  e5 {[%clk 0:01:00]} 26. Nxc6+ {[%clk 0:01:15]}  bxc6 {[%clk 0:01:01]} 27. Nd3 {[%clk 0:01:15]}  c5 {[%clk 0:00:59]} 28. Nf2 {[%clk 0:01:05]}  h5 {[%clk 0:00:54]} 29. Qa5 {[%clk 0:00:54]}  Ka7 {[%clk 0:00:44]} 30. Ne4 {[%clk 0:00:53]}  Qb6 {[%clk 0:00:34]} 31. Qxb6+ {[%clk 0:00:52]}  Kxb6 {[%clk 0:00:33]} 32. Nxf6 {[%clk 0:00:52]}  c4 {[%clk 0:00:33]} 33. Ba4 {[%clk 0:00:52]}  e4 {[%clk 0:00:30]} 34. Re2 {[%clk 0:00:38]}  Rh6 {[%clk 0:00:27]} 35. Nxe4 {[%clk 0:00:36]}  Re6 {[%clk 0:00:25]} 36. Nc3 {[%clk 0:00:36]}  Rxe2 {[%clk 0:00:24]} 37. Nxe2 {[%clk 0:00:37]}  Nf5 {[%clk 0:00:25]} 38. Rf1 {[%clk 0:00:35]}  Ne3 {[%clk 0:00:25]} 39. Rf6+ {[%clk 0:00:33]}  Ka5 {[%clk 0:00:23]} 40. Nd4 {[%clk 0:00:32]}  Rh8 {[%clk 0:00:11]} 41. Bc6 {[%clk 0:00:31]}  Kb6 {[%clk 0:00:09]} 42. g3 {[%clk 0:00:22]}  Kc5 {[%clk 0:00:09]} 43. Ne2 {[%clk 0:00:21]}  h4 {[%clk 0:00:09]} 44. Ba4 {[%clk 0:00:20]}  hxg3 {[%clk 0:00:09]} 45. Rc6# {[%clk 0:00:20]} 1-0


[Site "https://www.chess.com"]

[Event "Titled Tuesday Blitz October 12 2021"]
[White "Ismagilov, Damir"]
[Black "Siva Mahadevan"]
[WhiteFideId "34199982"]
[BlackFideId "25043153"]
[WhiteElo "2034"]
[BlackElo "2203"]
[Result "0-1"]
[Round "04"]
[TimeControl "180+1"]
[Date "2021.10.12"]
[WhiteClock "0:00:18"]
[BlackClock "0:00:45"]

1. c4 {[%clk 0:03:00]}  Nf6 {[%clk 0:02:59]} 2. Nc3 {[%clk 0:02:59]}  g6 {[%clk 0:02:59]} 3. f4 {[%clk 0:02:53]}  d6 {[%clk 0:02:59]} 4. Nf3 {[%clk 0:02:53]}  Bg7 {[%clk 0:03:00]} 5. e3 {[%clk 0:02:53]}  O-O {[%clk 0:03:01]} 6. Be2 {[%clk 0:02:54]}  Nc6 {[%clk 0:02:55]} 7. d4 {[%clk 0:02:51]}  e5 {[%clk 0:02:54]} 8. d5 {[%clk 0:02:49]}  Ne7 {[%clk 0:02:50]} 9. fxe5 {[%clk 0:02:49]}  dxe5 {[%clk 0:02:51]} 10. e4 {[%clk 0:02:47]}  Nh5 {[%clk 0:02:43]} 11. O-O {[%clk 0:02:44]}  h6 {[%clk 0:02:22]} 12. Be3 {[%clk 0:02:41]}  Nf4 {[%clk 0:02:18]} 13. Bxf4 {[%clk 0:02:41]}  exf4 {[%clk 0:02:19]} 14. e5 {[%clk 0:02:41]}  Nf5 {[%clk 0:02:19]} 15. Qd2 {[%clk 0:02:33]}  Ne3 {[%clk 0:02:19]} 16. Rf2 {[%clk 0:02:30]}  g5 {[%clk 0:01:51]} 17. h3 {[%clk 0:02:04]}  Re8 {[%clk 0:01:42]} 18. Nd1 {[%clk 0:02:00]}  Bxe5 {[%clk 0:01:42]} 19. Nxe5 {[%clk 0:01:40]}  Rxe5 {[%clk 0:01:42]} 20. Bd3 {[%clk 0:01:36]}  Qe7 {[%clk 0:01:41]} 21. Nc3 {[%clk 0:01:34]}  Bd7 {[%clk 0:01:38]} 22. Re1 {[%clk 0:01:33]}  Re8 {[%clk 0:01:38]} 23. Bb1 {[%clk 0:01:32]}  Nxc4 {[%clk 0:01:36]} 24. Rxe5 {[%clk 0:01:30]}  Qxe5 {[%clk 0:01:36]} 25. Qd3 {[%clk 0:01:27]}  Qe1+ {[%clk 0:01:34]} 26. Kh2 {[%clk 0:00:57]}  Qxf2 {[%clk 0:01:33]} 27. Qh7+ {[%clk 0:00:57]}  Kf8 {[%clk 0:01:34]} 28. Qxh6+ {[%clk 0:00:51]}  Ke7 {[%clk 0:01:33]} 29. Ne4 {[%clk 0:00:52]}  Qxb2 {[%clk 0:00:42]} 30. Qxg5+ {[%clk 0:00:51]}  f6 {[%clk 0:00:42]} 31. Qg7+ {[%clk 0:00:52]}  Kd8 {[%clk 0:00:43]} 32. Nxf6 {[%clk 0:00:52]}  Re7 {[%clk 0:00:43]} 33. Qf8+ {[%clk 0:00:32]}  Be8 {[%clk 0:00:44]} 34. Bg6 {[%clk 0:00:33]}  f3 {[%clk 0:00:44]} 35. Kg3 {[%clk 0:00:21]}  Qxg2+ {[%clk 0:00:44]} 36. Kf4 {[%clk 0:00:22]}  Qxg6 {[%clk 0:00:44]} 37. Nxe8 {[%clk 0:00:19]}  Rxe8 {[%clk 0:00:44]} 38. Qf5 {[%clk 0:00:17]}  Qxf5+ {[%clk 0:00:44]} 39. Kxf5 {[%clk 0:00:18]}  f2 {[%clk 0:00:45]} 0-1


[Site "https://www.chess.com"]

[Event "Titled Tuesday Blitz October 12 2021"]
[White "Karpeshov, Oleg"]
[Black "Demchenko, Anton"]
[WhiteFideId "4106814"]
[BlackFideId "4160258"]
[WhiteElo "2354"]
[BlackElo "2583"]
[Result "0-1"]
[Round "04"]
[TimeControl "180+1"]
[Date "2021.10.12"]
[WhiteClock "0:01:20"]
[BlackClock "0:00:30"]

1. e4 {[%clk 0:02:59]}  e5 {[%clk 0:02:59]} 2. Nf3 {[%clk 0:02:57]}  Nc6 {[%clk 0:03:00]} 3. Bc4 {[%clk 0:02:57]}  Nf6 {[%clk 0:02:59]} 4. Ng5 {[%clk 0:02:57]}  d5 {[%clk 0:02:59]} 5. exd5 {[%clk 0:02:57]}  Na5 {[%clk 0:03:00]} 6. Bb5+ {[%clk 0:02:57]}  c6 {[%clk 0:03:00]} 7. dxc6 {[%clk 0:02:57]}  bxc6 {[%clk 0:03:01]} 8. Qf3 {[%clk 0:02:57]}  Be7 {[%clk 0:02:59]} 9. Bd3 {[%clk 0:02:56]}  O-O {[%clk 0:02:58]} 10. h4 {[%clk 0:02:56]}  h6 {[%clk 0:02:56]} 11. Nc3 {[%clk 0:02:56]}  Rb8 {[%clk 0:02:51]} 12. a3 {[%clk 0:02:49]}  c5 {[%clk 0:02:45]} 13. Nge4 {[%clk 0:02:45]}  Nxe4 {[%clk 0:01:57]} 14. Bxe4 {[%clk 0:02:39]}  f5 {[%clk 0:01:51]} 15. Bd5+ {[%clk 0:02:39]}  Kh8 {[%clk 0:01:52]} 16. d3 {[%clk 0:02:39]}  Bd7 {[%clk 0:01:34]} 17. Qh5 {[%clk 0:02:30]}  Rb6 {[%clk 0:01:30]} 18. Qe2 {[%clk 0:02:03]}  Nc6 {[%clk 0:01:27]} 19. Bxc6 {[%clk 0:02:03]}  Bxc6 {[%clk 0:01:27]} 20. f3 {[%clk 0:02:02]}  Bxh4+ {[%clk 0:01:20]} 21. Kd1 {[%clk 0:01:57]}  c4 {[%clk 0:01:15]} 22. Be3 {[%clk 0:01:53]}  Rb7 {[%clk 0:01:12]} 23. Kc1 {[%clk 0:01:52]}  cxd3 {[%clk 0:01:09]} 24. Qxd3 {[%clk 0:01:52]}  Qxd3 {[%clk 0:01:04]} 25. cxd3 {[%clk 0:01:52]}  Bf6 {[%clk 0:01:05]} 26. Kc2 {[%clk 0:01:50]}  Rc8 {[%clk 0:01:02]} 27. Bc5 {[%clk 0:01:49]}  Bxf3 {[%clk 0:00:58]} 28. gxf3 {[%clk 0:01:44]}  Rxc5 {[%clk 0:00:57]} 29. Rh5 {[%clk 0:01:42]}  Bg5 {[%clk 0:00:42]} 30. Re1 {[%clk 0:01:38]}  Kg8 {[%clk 0:00:41]} 31. b4 {[%clk 0:01:35]}  Rc8 {[%clk 0:00:36]} 32. Kb3 {[%clk 0:01:27]}  Bd2 {[%clk 0:00:34]} 33. Rxe5 {[%clk 0:01:23]}  Rxc3+ {[%clk 0:00:32]} 34. Ka4 {[%clk 0:01:21]}  Rxd3 {[%clk 0:00:31]} 35. Rhxf5 {[%clk 0:01:20]}  Bc1 {[%clk 0:00:30]} 0-1


[Site "https://www.chess.com"]